bitfinex-derivatives/quotes_SOLF0:USTF0_20250113
["timestamp","ask_amount","ask_price","bid_price","bid_amount"]
[1736794662772,5.021,176.24,176.1,30.3610251]
[1736794663374,5.021,176.24,176.1,28.7555251]
[1736794664276,5.021,176.24,176.12,2.8402]
[1736794664277,2.8398,176.15,176.12,2.8402]
[1736794664671,5.021,176.24,176.1,22.3955251]
[1736794664875,2.8394,176.18,176.14,2.8397]
[1736794665078,2.8394,176.18,176.1,22.3955251]
[1736794665280,5.021,176.24,176.1,22.3955251]
[1736794666078,5.021,176.24,176.14,2.8399]
[1736794666478,2.8394,176.17,176.14,2.8399]
[1736794670387,2.8394,176.17,176.13,2.84]
[1736794672878,5.021,176.24,176.1,22.3955251]
[1736794673082,22.3955251,176.22,176.09,2.8406]
[1736794673686,2.8401,176.13,176.09,2.8406]
[1736794674686,2.8401,176.13,176.1,2.8405]
[1736794674887,2.8399,176.14,176.1,2.8405]
[1736794678592,13.9351221,176.2,176.12,2.8401]
[1736794679990,13.9351221,176.2,176.08,20.2951221]
[1736794680185,13.9351221,176.17,176.07,61.91145142]
[1736794680390,3.3095,176.16,176.07,61.91145142]
[1736794680591,5.0359,176.16,176.07,61.91145142]
[1736794680790,13.9351221,176.14,176.01,13.9351221]
[1736794680989,13.9351221,176.11,176.01,13.9351221]
[1736794681796,13.9351221,176.14,176.04,13.9351221]
[1736794682496,5.0359,176.16,176.04,13.9351221]
[1736794682697,2.8404,176.11,176.08,2.8408]
[1736794682901,2.8404,176.11,176.04,13.9351221]
[1736794683097,5.0359,176.16,176.04,13.9351221]
[1736794685707,2.8421,176.01,175.98,13.9351221]
[1736794685898,4.9434,176.07,175.96,6.36]
[1736794686100,13.9351221,176.05,175.94,97.46]
[1736794686298,4.9434,176.07,175.9,7.8457262]
[1736794686299,13.9351221,176.02,175.9,7.8457262]
[1736794686798,2.8429,175.96,175.91,2.8435]
[1736794687202,2.8429,175.96,175.89,21.8784221]
[1736794687504,2.8429,175.96,175.92,2.8434]
[1736794687892,2.8429,175.96,175.89,7.9433]
[1736794687893,22.34202485,176.03,175.89,6.36]
[1736794688108,22.34202485,176.03,175.87,1.7366]
[1736794688109,22.34202485,176.0,175.87,1.7366]
[1736794688300,4.8753,175.99,175.86,9.74643749]
[1736794688498,2.8437,175.91,175.86,12.59083749]
[1736794688699,4.8753,175.99,175.86,9.74643749]
[1736794689009,4.8753,175.99,175.9,2.8437]
[1736794689203,2.843,175.95,175.9,2.8437]
[1736794689699,4.8753,175.99,175.86,9.74643749]
[1736794689903,4.8753,175.99,175.88,22.34202485]
[1736794690500,2.8426,175.98,175.88,22.34202485]
[1736794690699,4.8753,175.99,175.88,22.34202485]
[1736794691298,2.8426,175.97,175.92,2.8433]
[1736794691604,1.6661,175.99,175.91,22.34202485]
[1736794692004,2.8426,175.98,175.93,2.8431]
[1736794692201,2.8426,175.98,175.91,22.34202485]
[1736794692501,5.036,176.03,175.91,22.34202485]
[1736794694200,2.8426,175.98,175.93,2.8432]
[1736794694803,2.8423,175.99,175.94,2.8431]
[1736794697100,2.8425,175.98,175.94,2.8431]
[1736794697307,5.036,176.03,175.93,6.36]
[1736794697507,2.8426,175.98,175.93,6.36]
[1736794697904,2.8426,175.98,175.93,9.2033]
[1736794698806,2.8426,175.98,175.93,6.36]
[1736794699007,5.036,176.03,175.95,2.8429]
[1736794699308,5.036,176.03,175.93,6.36]
[1736794699907,22.34202485,176.01,175.87,6.36]
[1736794700910,5.036,176.03,175.87,6.36]
[1736794701107,5.036,176.03,175.89,22.34202485]
[1736794701307,5.036,176.03,175.9,1.712]
[1736794701814,2.8423,175.99,175.95,2.8429]
[1736794702206,5.036,176.03,175.95,2.8429]
[1736794702405,2.8425,175.98,175.95,2.8429]
[1736794702613,5.036,176.03,175.93,2.8432]
[1736794702806,5.036,176.03,175.87,6.36]
[1736794703008,2.8435,175.92,175.87,6.36]
[1736794703209,2.8435,175.92,175.86,22.34202485]
[1736794703417,2.8435,175.92,175.87,6.36]
[1736794703716,2.8435,175.92,175.87,9.2041]
[1736794704017,22.34202485,175.99,175.87,9.2041]
[1736794704313,22.34202485,175.99,175.87,6.36]
[1736794704812,5.036,176.03,175.92,2.8434]
[1736794705009,5.036,176.03,175.87,6.36]
[1736794705407,2.8429,175.96,175.92,2.8433]
[1736794705906,2.8426,175.97,175.93,2.8432]
[1736794706912,2.8425,175.98,175.94,2.843]
[1736794708302,2.8425,175.98,175.95,2.8429]
[1736794708813,5.036,176.03,175.9,1.608]
[1736794709013,22.34202485,176.07,175.92,22.34202485]
[1736794709213,25.58632485,176.1,175.95,22.34202485]
[1736794709416,2.8418,176.03,175.99,2.8422]
[1736794709711,13.95271466,176.08,175.99,2.8422]
[1736794710213,2.8418,176.03,176.0,2.8421]
[1736794710413,13.95271466,176.08,175.97,13.95271466]
[1736794710906,2.8416,176.04,175.97,13.95271466]
[1736794711311,2.8416,176.04,176.0,2.842]
[1736794711520,3.2443,176.1,176.0,13.95271466]
[1736794711907,3.2443,176.1,176.02,2.8418]
[1736794712514,3.2443,176.1,176.01,2.8419]
[1736794713416,2.841,176.08,176.01,2.8419]
[1736794713719,3.2443,176.1,176.01,2.8419]
[1736794715214,2.8415,176.05,176.01,2.8419]
[1736794715717,2.8416,176.04,176.01,2.8419]
[1736794718812,3.2443,176.1,175.97,15.66061466]
[1736794719023,2.8414,176.05,175.97,15.66061466]
[1736794719720,2.8414,176.05,176.01,2.8418]
[1736794720714,2.8415,176.04,176.01,2.8418]
[1736794721618,2.842,176.01,175.99,9.2023]
[1736794722120,2.842,176.01,175.97,13.95271466]
[1736794722426,2.842,176.01,175.98,2.8424]
[1736794722925,13.95271466,176.08,175.94,1.739]
[1736794723229,13.95271466,176.02,175.9,69.02557436]
[1736794723418,13.95271466,175.99,175.9,62.66557436]
[1736794723830,2.8433,175.93,175.9,62.66557436]
[1736794724021,13.95271466,175.99,175.87,41.0794525]
[1736794724222,2.8429,175.96,175.91,2.8436]
[1736794724422,13.95271466,175.99,175.91,2.8436]
[1736794725223,2.8431,175.95,175.91,2.8436]
[1736794727623,4.8928,176.01,175.89,13.95271466]
[1736794727624,3.1743,176.01,175.89,13.95271466]
[1736794727831,3.1743,176.01,175.93,2.8432]
[1736794727832,2.8427,175.97,175.93,2.8432]
[1736794728224,3.1743,176.01,175.93,2.8432]
[1736794729344,3.1743,176.01,175.92,13.95271466]
[1736794730430,2.8426,175.98,175.95,2.8429]
[1736794730624,2.8426,175.98,175.92,13.95271466]
[1736794731532,13.95271466,176.05,175.92,13.95271466]
[1736794731834,2.8421,176.01,175.95,13.95271466]
[1736794732131,2.8419,176.02,175.96,6.36]
[1736794732331,13.95271466,176.08,175.96,6.36]
[1736794732820,13.95271466,176.08,176.01,2.842]
[1736794733219,13.95271466,176.08,175.98,13.95271466]
[1736794733424,2.8415,176.04,176.01,2.842]
[1736794733624,4.8749,176.09,175.98,13.95271466]
[1736794734434,4.8749,176.09,176.02,2.8417]
[1736794734728,4.8749,176.09,175.98,13.95271466]
[1736794734930,2.8411,176.07,176.04,2.8415]
[1736794735731,13.95271466,176.11,176.01,13.95271466]
[1736794735732,2.8414,176.05,176.02,2.8418]
[1736794736326,2.8414,176.05,175.96,6.36]
[1736794736527,2.8426,175.98,175.93,32.95538717]
[1736794736732,13.95271466,176.0,175.93,31.33278717]
[1736794737128,5.0187,176.02,175.93,31.33278717]
[1736794737529,2.8429,175.96,175.92,2.8434]
[1736794737731,5.0187,176.02,175.89,9.52359679]
[1736794738231,5.0187,176.02,175.89,1.6904]
[1736794738836,2.8428,175.96,175.92,2.8434]
[1736794740827,5.0187,176.02,175.92,2.8434]
[1736794741032,2.843,175.95,175.92,2.8434]
[1736794744342,5.0187,176.02,175.9,13.95271466]
[1736794744537,2.8434,175.93,175.88,1.5776]
[1736794744736,5.0187,176.02,175.87,3.38666533]
[1736794744737,13.95271466,175.98,175.87,3.38666533]
[1736794745038,2.8442,175.88,175.85,31.33278717]
[1736794745338,13.95271466,175.95,175.85,31.33278717]
[1736794745547,2.8442,175.88,175.85,31.33278717]
[1736794745840,2.8442,175.88,175.83,100.3848]
[1736794746232,2.8445,175.86,175.82,7.83319679]
[1736794746739,2.8445,175.86,175.82,10.67809679]
[1736794747044,2.8445,175.86,175.82,2.8449]
[1736794747243,2.8438,175.9,175.79,93.33747357]
[1736794747442,5.0748,175.94,175.83,13.95271466]
[1736794747742,20.31271466,175.98,175.86,13.95271466]
[1736794747946,20.31271466,175.98,175.84,7.9346]
[1736794747947,1.6897,176.0,175.91,2.8436]
[1736794748532,2.8426,175.98,175.89,13.95271466]
[1736794748739,1.6897,176.0,175.89,13.95271466]
[1736794748740,1.6897,176.0,175.92,2.8434]
[1736794749739,1.7221,176.02,175.92,13.95271466]
[1736794749935,381.40723085,176.14,176.01,13.95271466]
[1736794750143,1.6637,176.12,176.01,13.95271466]
[1736794750540,2.841,176.08,176.01,13.95271466]
[1736794750740,1.6637,176.12,176.01,13.95271466]
[1736794750943,13.95271466,176.07,175.99,6.36]
[1736794751142,13.95271466,176.07,175.95,13.95271466]
[1736794751345,22.33281546,176.07,175.95,2.8429]
[1736794751545,2.8416,176.04,175.95,2.8429]
[1736794751741,1.6637,176.03,175.94,6.36]
[1736794752540,22.33281546,176.07,175.94,6.36]
[1736794752747,22.33281546,176.07,175.95,22.33281546]
[1736794752945,1.6923,176.08,175.95,22.33281546]
[1736794753146,2.8416,176.04,175.99,2.8422]
[1736794753349,1.6923,176.08,175.98,22.33281546]
[1736794753742,2.841,176.07,175.98,22.33281546]
[1736794754345,2.8412,176.06,176.01,2.8419]
[1736794754648,1.6923,176.08,175.95,22.33281546]
[1736794755243,2.8416,176.04,175.99,2.8422]
[1736794755439,1.6923,176.08,175.95,22.33281546]
[1736794755644,1.6923,176.08,175.97,22.33281546]
[1736794758451,2.8414,176.05,175.99,2.8423]
[1736794758745,2.8414,176.05,175.97,22.33281546]
[1736794758746,1.6923,176.08,175.97,22.33281546]
[1736794759142,2.8415,176.05,176.01,2.842]
[1736794760048,1.6923,176.08,175.97,22.33281546]
[1736794760244,3.2605,176.13,176.0,22.33281546]
[1736794760447,310.61643088,176.22,176.0,22.33281546]
[1736794760448,1.6692,176.18,176.06,22.33281546]
[1736794760649,1.6692,176.18,176.01,9.6731]
[1736794760650,154.19149234,176.2,176.09,22.33281546]
[1736794760944,154.19149234,176.2,176.09,28.69281546]
[1736794761251,154.19149234,176.2,176.12,2.8402]
[1736794761252,1.6286,176.2,176.12,2.8402]
[1736794762145,1.6286,176.2,176.13,2.84]
[1736794762653,1.6286,176.2,176.09,28.69281546]
[1736794762856,1.6286,176.2,176.06,22.33281546]
[1736794763151,2.8406,176.1,176.05,6.36]
[1736794763351,29.15780256,176.19,176.05,6.36]
[1736794763648,6.8249871,176.19,176.05,6.36]
[1736794764043,22.33281546,176.17,176.01,73.21921463]
[1736794764240,22.33281546,176.14,176.01,71.61101463]
[1736794764445,2.8415,176.05,176.01,71.61101463]
[1736794765151,2.8407,176.09,176.02,2.8417]
[1736794765451,1.6939,176.12,176.01,71.61101463]
[1736794765849,2.8411,176.07,176.03,2.8416]
[1736794766441,2.8412,176.06,176.03,2.8416]
[1736794766847,2.8412,176.06,176.01,71.61101463]
[1736794767046,2.8412,176.06,176.02,2.8418]
[1736794768551,2.8413,176.06,176.01,74.45281463]
[1736794769846,2.8413,176.06,176.02,2.8418]
[1736794770043,1.6939,176.12,176.01,71.61101463]
[1736794770243,1.6939,176.12,176.04,2.8414]
[1736794770445,1.6939,176.12,176.01,71.61101463]
[1736794770651,1.5694,176.13,176.03,22.33281546]
[1736794771053,1.7387,176.16,176.03,22.33281546]
[1736794771248,1.7387,176.16,176.06,22.33281546]
[1736794771452,1.5992,176.17,176.06,22.33281546]
[1736794772255,6.8249871,176.19,176.09,22.33281546]
[1736794772455,6.8249871,176.19,176.09,28.69281546]
[1736794772651,2.8397,176.16,176.12,2.8402]
[1736794772856,6.8249871,176.19,176.09,28.69281546]
[1736794773053,2.8393,176.18,176.12,2.8401]
[1736794773247,2.8393,176.18,176.1,3.3064]
[1736794773449,6.8249871,176.19,176.1,3.3064]
[1736794774559,6.8249871,176.19,176.09,9.2007]
[1736794774857,6.8249871,176.19,176.09,6.36]
[1736794775059,2.8397,176.16,176.09,6.36]
[1736794775258,2.8397,176.16,176.1,1.5784]
[1736794775459,2.8397,176.16,176.12,2.8401]
[1736794775761,2.8397,176.15,176.12,2.8401]
[1736794776162,3.1883,176.22,176.12,2.8401]
[1736794776462,3.1883,176.22,176.1,1.5784]
[1736794776761,2.8396,176.16,176.1,1.5784]
[1736794777155,2.8396,176.16,176.12,2.8401]
[1736794777356,2.8396,176.16,176.1,1.5784]
[1736794777761,2.8396,176.16,176.13,2.84]
[1736794778453,46.23275422,176.31,176.17,2.8394]
[1736794778454,6.81993876,176.31,176.17,2.8394]
[1736794778663,5.92411122,176.3,176.17,25.17221546]
[1736794778964,0.97431122,176.29,176.17,22.33281546]
[1736794779156,2.8388,176.21,176.18,2.8392]
[1736794779356,0.97431122,176.29,176.16,6.34]
[1736794779357,22.33281546,176.29,176.16,6.34]
[1736794779656,2.839,176.2,176.16,6.34]
[1736794780258,22.33281546,176.29,176.16,6.34]
[1736794780456,4.9498,176.3,176.11,23.96951546]
[1736794780457,22.33281546,176.26,176.11,23.96951546]
[1736794780662,22.33281546,176.23,176.1,4.4189]
[1736794780861,4.9754,176.22,176.1,4.4189]
[1736794781161,4.9754,176.22,176.1,1.5784]
[1736794781362,4.9754,176.22,176.11,2.8403]
[1736794781562,2.84,176.14,176.08,28.67281546]
[1736794781762,2.84,176.14,176.1,2.8404]
[1736794782358,4.9754,176.22,176.08,6.34]
[1736794782564,2.8402,176.13,176.09,2.8406]
[1736794782762,4.9754,176.22,176.08,6.34]
[1736794783161,2.8401,176.13,176.09,2.8407]
[1736794783858,2.8402,176.12,176.09,2.8407]
[1736794784264,4.9754,176.22,176.08,6.34]
[1736794784464,2.84,176.14,176.1,2.8405]
[1736794785465,2.84,176.14,176.08,6.34]
[1736794786168,2.8398,176.15,176.12,2.8402]
[1736794786773,4.9754,176.22,176.08,6.34]
[1736794787465,22.33281546,176.17,176.05,1.6978]
[1736794787666,22.33281546,176.2,176.0,97.54]
[1736794787667,22.33281546,176.14,176.01,1.5775]
[1736794787872,4.7888,176.13,176.0,97.54]
[1736794788074,2.8415,176.05,176.01,2.842]
[1736794788273,4.7888,176.13,176.0,97.54]
[1736794788677,2.8407,176.1,176.02,2.8417]
[1736794788875,4.7888,176.13,176.02,2.8417]
[1736794789476,2.8411,176.07,176.0,97.54]
[1736794789872,4.7888,176.13,176.0,97.54]
[1736794790072,2.841,176.08,176.04,2.8415]
[1736794791172,2.8407,176.09,176.05,2.8412]
[1736794791572,4.7888,176.13,176.05,2.8412]
[1736794791777,2.8409,176.08,176.04,2.8414]
[1736794792277,4.7888,176.13,176.0,97.54]
[1736794792572,2.8411,176.07,176.03,2.8415]
[1736794792779,4.7888,176.13,176.0,97.54]
[1736794792980,4.7888,176.13,176.01,2.8419]
[1736794793678,2.8415,176.05,176.01,2.8419]
[1736794794179,4.7888,176.13,176.0,97.54]
[1736794794180,2.8418,176.02,176.0,97.54]
[1736794795381,4.7888,176.13,176.0,97.54]
[1736794795580,2.8414,176.05,176.0,97.54]
[1736794796082,22.33281546,176.1,176.0,97.54]
[1736794796878,2.842,176.01,176.0,97.54]
[1736794797379,2.8419,176.02,176.0,97.54]
[1736794797579,22.33281546,176.1,176.0,97.54]
[1736794797883,2.8416,176.04,176.0,100.3821]
[1736794798182,22.33281546,176.1,176.0,100.3821]
[1736794798477,2.8416,176.04,176.0,100.3821]
[1736794799483,2.8413,176.06,176.02,2.8417]
[1736794799779,6.34,176.11,176.0,97.54]
[1736794800083,2.8415,176.05,176.01,2.8419]
[1736794800283,6.34,176.11,176.01,2.8419]
[1736794800786,22.33281546,176.09,175.96,1.5775]
[1736794801180,2.8409,176.08,176.05,2.8413]
[1736794801379,4.7888,176.13,176.03,22.33281546]
[1736794801583,5.6785,176.19,176.06,22.33281546]
[1736794801776,1.6711,176.18,176.06,22.33281546]
[1736794803079,1.6711,176.18,176.07,2.841]
[1736794803278,1.6711,176.18,176.06,22.33281546]
[1736794803881,1.6007,176.19,176.09,22.33281546]
[1736794804188,22.33281546,176.22,176.07,6.34]
[1736794804383,1.6676,176.18,176.04,1.6937]
[1736794804582,22.33281546,176.16,176.04,1.6937]
[1736794804781,1.722,176.17,176.04,1.6937]
[1736794804983,2.8403,176.12,176.07,2.8409]
[1736794805985,1.722,176.17,176.04,1.6937]
[1736794806177,1.6843,176.16,176.04,1.6937]
[1736794806785,24.01711546,176.16,176.0,22.33281546]
[1736794806988,22.33281546,176.13,176.01,97.52]
[1736794807190,2.8418,176.03,176.01,97.52]
[1736794807383,22.33281546,176.13,176.01,97.52]
[1736794807384,22.33281546,176.1,176.01,97.52]
[1736794807690,22.33281546,176.1,175.98,6.34]
[1736794807691,2.8422,176.0,175.98,6.34]
[1736794808789,1.6144,176.08,175.94,23.97301546]
[1736794809082,2.8429,175.96,175.91,25.17641546]
[1736794809290,22.33281546,176.03,175.9,1.7176]
[1736794810080,22.33281546,176.03,175.9,4.5614]
[1736794810281,22.33281546,176.03,175.9,1.7176]
[1736794810592,22.33281546,176.0,175.85,119.83281546]
[1736794810887,22.33281546,175.97,175.85,97.5]
[1736794811281,4.9081,175.99,175.85,119.83281546]
[1736794811786,2.8428,175.96,175.9,2.8437]
[1736794811986,2.8428,175.96,175.88,22.33281546]
[1736794811987,4.9081,175.99,175.89,6.34]
[1736794812487,2.8427,175.97,175.92,2.8434]
[1736794813485,2.8428,175.96,175.92,2.8434]
[1736794814593,6.34,176.06,175.91,22.33281546]
[1736794814781,1.679,176.05,175.92,1.6965]
[1736794815188,22.33281546,176.04,175.92,1.6965]
[1736794815386,22.33281546,176.01,175.9,1.6948]
[1736794815586,3.3919,176.0,175.86,28.67281546]
[1736794816286,2.8431,175.95,175.9,2.8437]
[1736794816483,3.3919,176.0,175.86,28.67281546]
[1736794817094,1.7147,176.04,175.93,22.33281546]
[1736794817387,1.7147,176.04,175.94,6.34]
[1736794817594,2.842,176.01,175.96,2.8428]
[1736794817790,1.679,176.05,175.94,8.0804]
[1736794817992,23.96891546,176.04,175.86,53.67347736]
[1736794818296,22.33281546,175.98,175.86,31.3406619]
[1736794818499,22.33281546,175.95,175.86,31.3406619]
[1736794818796,2.8437,175.91,175.83,2.8448]
[1736794818989,1.6361,175.94,175.83,22.33281546]
[1736794819193,3.4172,175.97,175.83,22.33281546]
[1736794820198,3.4172,175.97,175.86,22.33281546]
[1736794820793,2.8433,175.93,175.88,2.8439]
[1736794821396,2.8429,175.96,175.91,2.8436]
[1736794821591,24.05211546,176.01,175.91,2.8436]
[1736794821791,24.05211546,176.01,175.89,6.34]
[1736794821992,2.8433,175.93,175.89,6.34]
[1736794822195,1.7193,176.01,175.89,28.67281546]
[1736794822496,2.8427,175.97,175.93,2.8432]
[1736794822891,1.7193,176.01,175.9,1.6833]
[1736794823493,24.05211546,176.01,175.87,1.5962]
[1736794823696,22.33281546,175.98,175.83,22.33281546]
[1736794823993,22.33281546,175.95,175.82,9.47386547]
[1736794824197,22.33281546,175.92,175.82,7.83516547]
[1736794824496,2.8446,175.85,175.81,2.8452]
[1736794825400,2.8444,175.87,175.83,2.8449]
[1736794825594,3.3484,175.91,175.8,1.6833]
[1736794827199,3.3484,175.91,175.83,2.8449]
[1736794827200,2.8443,175.87,175.83,2.8449]
[1736794827399,3.3484,175.91,175.77,119.87281546]
[1736794827697,3.3484,175.91,175.77,126.21281546]
[1736794827895,2.8443,175.87,175.79,2.8455]
[1736794828096,3.3484,175.91,175.77,126.21281546]
[1736794828501,3.3484,175.91,175.8,2.8454]
[1736794829098,2.8447,175.85,175.8,2.8454]
[1736794830205,2.8447,175.84,175.8,2.8454]
[1736794830703,2.8447,175.84,175.81,2.8452]
[1736794831096,3.3484,175.91,175.77,126.21281546]
[1736794832006,3.3484,175.91,175.81,2.8452]
[1736794833100,2.8447,175.85,175.81,2.8452]
[1736794833297,3.3484,175.91,175.8,2.8453]
[1736794834607,3.3484,175.91,175.77,126.21281546]
[1736794835004,2.8441,175.88,175.84,2.8447]
[1736794835210,3.3484,175.91,175.8,22.33281546]
[1736794835510,3.3484,175.91,175.81,3.2147]
[1736794835511,1.6323,175.91,175.81,3.2147]
[1736794835703,1.6323,175.91,175.81,1.6081]
[1736794835903,1.6323,175.91,175.8,2.8452]
[1736794836108,1.6323,175.91,175.77,127.82091546]
[1736794836307,22.33281546,175.89,175.77,105.4881]
[1736794836503,22.33281546,175.89,175.76,1.6387]
[1736794836710,22.33281546,175.86,175.73,1.6066]
[1736794836904,22.33281546,175.86,175.68,22.33281546]
[1736794836905,22.33281546,175.83,175.68,22.33281546]
[1736794837113,2.8467,175.72,175.68,2.8472]
[1736794837310,22.33281546,175.77,175.66,1.6688]
[1736794837614,2.8472,175.7,175.66,1.6688]
[1736794837813,1.5774,175.76,175.64,31.3406619]
[1736794838013,1.5774,175.76,175.63,6.36]
[1736794839314,2.8468,175.72,175.67,2.8474]
[1736794839616,2.8468,175.72,175.63,6.36]
[1736794840416,2.8465,175.74,175.63,6.36]
[1736794840615,1.698,175.82,175.71,22.33281546]
[1736794840815,1.698,175.82,175.72,9.7269]
[1736794841318,2.8452,175.81,175.76,2.8459]
[1736794841514,1.6555,175.87,175.74,22.33281546]
[1736794841715,1.6555,175.87,175.72,9.7269]
[1736794841916,22.33281546,175.85,175.72,3.3669]
[1736794842318,22.33281546,175.82,175.7,6.36]
[1736794842625,22.33281546,175.82,175.57,191.64198572]
[1736794842626,22.33281546,175.79,175.66,1.6406]
[1736794842822,1.6555,175.78,175.66,1.6406]
[1736794843027,3.3312,175.78,175.66,1.6406]
[1736794843734,2.8468,175.72,175.67,2.8475]
[1736794843930,1.6555,175.78,175.67,22.33281546]
[1736794844125,3.3638,175.84,175.75,2.8461]
[1736794844326,3.3638,175.84,175.72,6.36]
[1736794845835,1.7168,175.84,175.73,22.33281546]
[1736794846037,1.7168,175.84,175.74,1.647]
[1736794846230,22.33281546,175.88,175.76,22.33281546]
[1736794846231,1.5994,175.88,175.76,22.33281546]
[1736794846431,2.8453,175.81,175.76,2.846]
[1736794847535,23.93221546,175.88,175.74,1.647]
[1736794847731,1.5994,175.88,175.76,22.33281546]
[1736794848433,2.845,175.83,175.76,22.33281546]
[1736794848633,2.845,175.83,175.78,2.8456]
[1736794848834,1.5994,175.9,175.76,22.33281546]
[1736794849040,1.5994,175.9,175.79,22.33281546]
[1736794849235,1.5994,175.9,175.83,2.8449]
[1736794849538,2.8448,175.84,175.8,1.6983]
[1736794849839,25.58431546,175.94,175.8,1.6983]
[1736794850033,1.595,175.96,175.82,22.33281546]
[1736794850537,2.8434,175.92,175.82,22.33281546]
[1736794851034,2.8433,175.93,175.82,22.33281546]
[1736794851232,1.595,175.96,175.85,22.33281546]
[1736794851431,1.595,175.96,175.86,6.36]
[1736794851635,2.8429,175.96,175.91,2.8436]
[1736794851838,1.5785,176.0,175.86,6.36]
[1736794852738,22.33281546,175.97,175.86,6.36]
[1736794853040,2.8437,175.91,175.86,9.2044]
[1736794853736,2.8439,175.9,175.86,9.2044]
[1736794853937,22.33281546,175.97,175.87,2.8442]
[1736794854141,23.91131546,176.0,175.86,6.36]
[1736794854338,22.33281546,175.97,175.82,22.33281546]
[1736794854539,22.33281546,175.97,175.81,9.6084]
[1736794854540,22.33281546,175.94,175.81,9.6084]
[1736794854735,22.33281546,175.91,175.81,1.5801]
[1736794854935,22.33281546,175.86,175.75,1.6121]
[1736794855242,2.8454,175.8,175.76,2.846]
[1736794855443,24.07271546,175.89,175.75,1.6121]
[1736794855638,1.7399,175.89,175.77,22.33281546]
[1736794855937,24.07271546,175.89,175.75,1.6121]
[1736794856137,24.07271546,175.89,175.76,2.8459]
[1736794856340,24.07271546,175.89,175.75,1.6121]
[1736794856536,22.33281546,175.86,175.75,1.6121]
[1736794856737,2.8453,175.81,175.77,2.8459]
[1736794856943,22.33281546,175.86,175.75,1.6121]
[1736794857336,22.33281546,175.86,175.73,9.67]
[1736794858943,22.33281546,175.86,175.76,2.8459]
[1736794860145,2.8454,175.8,175.76,2.8459]
[1736794860349,22.33281546,175.86,175.73,9.67]
[1736794861645,2.8451,175.82,175.76,2.8459]
[1736794861848,2.8451,175.82,175.73,9.67]
[1736794862146,24.07271546,175.89,175.74,22.33281546]
[1736794862348,1.7399,175.89,175.77,22.33281546]
[1736794862641,1.7377,175.93,175.8,22.33281546]
[1736794862846,3.3566,175.98,175.86,22.33281546]
[1736794863237,3.3566,175.98,175.87,1.6226]
[1736794863442,1.5959,175.99,175.87,3.2791]
[1736794864147,1.5959,175.99,175.89,2.8439]
[1736794864345,1.5959,175.99,175.87,3.2791]
[1736794864742,1.5959,175.99,175.88,2.8441]
[1736794865143,1.5959,175.99,175.9,2.8436]
[1736794865344,1.5959,175.99,175.88,6.34]
[1736794865745,2.8429,175.96,175.91,2.8435]
[1736794866346,22.33281546,176.04,175.89,23.91431546]
[1736794866547,27.29581546,176.07,175.92,22.33281546]
[1736794866750,27.29581546,176.07,175.95,22.33281546]
[1736794866751,4.963,176.07,175.95,22.33281546]
[1736794867051,6.82336103,176.08,175.95,22.33281546]
[1736794867052,6.82336103,176.08,175.96,7.9488]
[1736794867247,6.82336103,176.08,175.98,22.33281546]
[1736794867451,1.7363,176.12,175.98,22.33281546]
[1736794868249,1.7363,176.12,176.01,22.33281546]
[1736794868648,22.33281546,176.22,175.97,1.5815]
[1736794868649,22.33281546,176.19,176.04,22.33281546]
[1736794868944,1.7188,176.17,176.05,6.34]
[1736794869352,1.7188,176.17,176.05,7.9794]
[1736794870055,1.7188,176.17,176.06,1.6874]
[1736794870250,2.8399,176.14,176.08,2.8408]
[1736794870647,2.8399,176.14,176.06,3.43]
[1736794870844,2.8393,176.18,176.11,2.8402]
[1736794871051,3.2335,176.21,176.1,22.33281546]
[1736794871250,1.652,176.23,176.1,22.33281546]
[1736794871550,2.8389,176.21,176.13,22.33281546]
[1736794871750,3.3193,176.25,176.14,6.34]